fUSD/lending_fUSD_20240122
["ID","MTS","AMOUNT","RATE_DAILY","PERIOD"]
[312481566,1705918253808,-151.0,0.00037808,7]
[312481567,1705918253821,-151.0,0.00037808,7]
[312481568,1705918253831,-151.0,0.00037808,7]
[312481569,1705918253841,-151.0,0.00037808,7]
[312481570,1705918253851,-151.0,0.00037808,7]
[312481571,1705918253860,-151.0,0.00037808,7]
[312481572,1705918253870,-151.0,0.00037808,7]
[312481573,1705918253880,-151.0,0.00037808,7]
[312481574,1705918253890,-151.0,0.00037808,7]
[312481575,1705918253899,-151.0,0.00037808,7]
[312481576,1705918253908,-151.0,0.00037808,7]
[312481577,1705918253918,-560.3230795,0.00037808,2]
[312481578,1705918253928,-500.0,0.00037808,2]
[312481579,1705918253937,-500.0,0.00037808,2]
[312481580,1705918253947,-500.0,0.00037808,2]
[312481581,1705918253956,-793.1,0.00037808,2]
[312481582,1705918253966,-556.15,0.00037808,2]
[312481583,1705918253975,-500.0,0.00037808,2]
[312481584,1705918253984,-500.0,0.00037808,2]
[312481585,1705918253994,-500.0,0.00037808,2]
[312481586,1705918254003,-742.07,0.00037808,2]
[312481587,1705918254012,-500.0,0.00037808,2]
[312481588,1705918254022,-500.0,0.00037808,2]
[312481589,1705918254031,-532.77,0.00037808,2]
[312481590,1705918254040,-229.7460292,0.00037808,2]
[312481591,1705918254049,-500.0,0.00037808,2]
[312481592,1705918254058,-500.0,0.00037808,2]
[312481593,1705918254070,-507.10351548,0.00037808,2]
[312481594,1705918254079,-686.15,0.00037808,2]
[312481595,1705918254088,-500.0,0.00037808,2]
[312481596,1705918254097,-500.0,0.00037808,2]
[312481597,1705918254106,-500.0,0.00037808,2]
[312481598,1705918254114,-500.0,0.00037808,2]
[312481599,1705918254124,-500.0,0.00037808,2]
[312481600,1705918254133,-500.0,0.00037808,2]
[312481601,1705918254141,-500.0,0.00037808,2]
[312481602,1705918254151,-500.0,0.00037808,2]
[312481603,1705918254161,-500.0,0.00037808,2]
[312481604,1705918254172,-500.0,0.00037808,2]
[312481605,1705918254180,-500.0,0.00037808,2]
[312481606,1705918254189,-500.0,0.00037808,2]
[312481607,1705918254199,-500.0,0.00037808,2]
[312481608,1705918254208,-973.55,0.00037808,2]
[312481609,1705918254217,-500.0,0.00037808,2]
[312481610,1705918254227,-500.0,0.00037808,2]
[312481611,1705918254238,-500.0,0.00037808,2]
[312481612,1705918254246,-504.95756832,0.00037808,2]
[312481613,1705918254255,-500.0,0.00037808,2]
[312481614,1705918254264,-500.0,0.00037808,2]
[312481615,1705918254272,-500.0,0.00037808,2]
[312481616,1705918254282,-483.43766329,0.00037808,2]
[312481617,1705918254290,-596.93,0.00037808,2]
[312481618,1705918254299,-500.0,0.00037808,2]
[312481619,1705918254309,-512.65,0.00037808,2]
[312481620,1705918254319,-500.0,0.00037808,2]
[312481621,1705918254329,-500.0,0.00037808,2]
[312481622,1705918254338,-500.0,0.00037808,2]
[312481623,1705918254347,-500.0,0.00037808,2]
[312481624,1705918254356,-500.0,0.00037808,2]
[312481625,1705918254365,-500.0,0.00037808,2]
[312481626,1705918254374,-500.0,0.00037808,2]
[312481627,1705918254383,-511.38585999,0.00037808,2]
[312481628,1705918254392,-582.18,0.00037808,2]
[312481629,1705918254401,-529.51,0.00037808,2]
[312481630,1705918254409,-500.0,0.00037808,2]
[312481631,1705918254418,-500.0,0.00037808,2]
[312481632,1705918254427,-500.0,0.00037808,2]
[312481633,1705918254435,-500.0,0.00037808,2]
[312481634,1705918254444,-500.0,0.00037808,2]
[312481635,1705918254453,-500.0,0.00037808,2]
[312481636,1705918254462,-500.0,0.00037808,2]
[312481637,1705918254470,-500.0,0.00037808,2]
[312481638,1705918254479,-816.74,0.00037808,2]
[312481639,1705918254488,-500.0,0.00037808,2]
[312481640,1705918254497,-306.42735171,0.00037808,2]
[312481641,1705918254506,-500.0,0.00037808,2]
[312481642,1705918254515,-500.0,0.00037808,2]
[312481643,1705918254523,-589.01,0.00037808,2]
[312481644,1705918254533,-627.71,0.00037808,2]
[312481645,1705918254541,-500.0,0.00037808,2]
[312481646,1705918254550,-790.25,0.00037808,2]
[312481647,1705918254559,-542.2,0.00037808,2]
[312481648,1705918254569,-504.87880826,0.00037808,2]
[312481649,1705918254578,-500.0,0.00037808,2]
[312481650,1705918254587,-500.0,0.00037808,2]
[312481651,1705918254596,-500.0,0.00037808,2]
[312481652,1705918254604,-500.0,0.00037808,2]
[312481653,1705918254613,-500.0,0.00037808,2]
[312481654,1705918254622,-500.0,0.00037808,2]
[312481655,1705918254631,-500.0,0.00037808,2]
[312481656,1705918254640,-500.0,0.00037808,2]
[312481657,1705918254649,-532.33,0.00037808,2]
[312481658,1705918254658,-616.97,0.00037808,2]
[312481659,1705918254666,-500.0,0.00037808,2]
[312481660,1705918254675,-500.0,0.00037808,2]
[312481661,1705918254948,-500.0,0.00037808,2]
[312481662,1705918254959,-500.0,0.00037808,2]
[312481663,1705918254968,-500.0,0.00037808,2]
[312481664,1705918254977,-500.0,0.00037808,2]
[312481665,1705918254986,-500.0,0.00037808,2]
[312481666,1705918254995,-500.0,0.00037808,2]
[312481667,1705918255004,-500.0,0.00037808,2]
[312481668,1705918255013,-376.4438334,0.00037808,2]
[312481669,1705918255026,-500.0,0.00037808,2]
[312481670,1705918255034,-500.0,0.00037808,2]
[312481671,1705918255043,-500.0,0.00037808,2]
[312481672,1705918255052,-500.0,0.00037808,2]
[312481673,1705918255061,-500.0,0.00037808,2]
[312481674,1705918255070,-500.0,0.00037808,2]
[312481675,1705918255079,-500.0,0.00037808,2]
[312481676,1705918255087,-507.12710702,0.00037808,2]
[312481677,1705918255096,-174.13919025,0.00037808,2]
[312481678,1705918255105,-500.0,0.00037808,2]
[312481679,1705918255114,-500.0,0.00037808,2]
[312481680,1705918255122,-222.23823439,0.00037808,2]
[312481681,1705918255131,-500.0,0.00037808,2]
[312481682,1705918255140,-500.0,0.00037808,2]
[312481683,1705918255153,-500.0,0.00037808,2]
[312481684,1705918255163,-602.61,0.00037808,2]
[312481685,1705918255172,-553.41509572,0.00037808,2]
[312481686,1705918255181,-500.0,0.00037808,2]
[312481687,1705918255191,-783.43,0.00037808,2]
[312481688,1705918255199,-500.0,0.00037808,2]
[312481689,1705918255209,-500.0,0.00037808,2]
[312481690,1705918255219,-500.0,0.00037808,2]
[312481691,1705918255229,-392.32,0.00037808,2]
[312481692,1705918255239,-500.0,0.00037808,2]
[312481693,1705918255248,-500.0,0.00037808,2]
[312481694,1705918255257,-500.0,0.00037808,2]
[312481695,1705918255267,-500.0,0.00037808,2]
[312481696,1705918255276,-1071.32,0.00037808,2]
[312481697,1705918255285,-516.93421682,0.00037808,2]
[312481698,1705918255294,-500.0,0.00037808,2]
[312481699,1705918255303,-500.0,0.00037808,2]
[312481700,1705918255312,-500.0,0.00037808,2]
[312481701,1705918255326,-500.0,0.00037808,2]
[312481702,1705918255335,-500.0,0.00037808,2]
[312481703,1705918255344,-500.0,0.00037808,2]
[312481704,1705918255354,-848.6,0.00037808,2]
[312481705,1705918255363,-500.0,0.00037808,2]
[312481706,1705918255373,-855.37,0.00037808,2]
[312481707,1705918255382,-500.0,0.00037808,2]
[312481708,1705918255391,-500.0,0.00037808,2]
[312481709,1705918255401,-500.0,0.00037808,2]
[312481710,1705918255411,-805.2,0.00037808,2]
[312481711,1705918255420,-532.01,0.00037808,2]
[312481712,1705918255429,-500.0,0.00037808,2]
[312481713,1705918255438,-775.0,0.00037808,2]
[312481714,1705918255448,-500.0,0.00037808,2]
[312481715,1705918255458,-500.0,0.00037808,2]
[312481716,1705918255467,-383.81,0.00037808,2]
[312481717,1705918255475,-500.0,0.00037808,2]
[312481718,1705918255484,-555.76,0.00037808,2]
[312481719,1705918255493,-500.0,0.00037808,2]
[312481720,1705918255502,-200.0,0.00037808,2]
[312481721,1705918255511,-500.0,0.00037808,2]
[312481722,1705918255521,-500.0,0.00037808,2]
[312481723,1705918255530,-500.0,0.00037808,2]
[312481724,1705918255540,-500.0,0.00037808,2]
[312481725,1705918255549,-500.0,0.00037808,2]
[312481726,1705918255558,-500.0,0.00037808,2]
[312481727,1705918255567,-500.0,0.00037808,2]
[312481728,1705918255584,-887.47,0.00037808,2]
[312481729,1705918255594,-977.41,0.00037808,2]
[312481730,1705918255604,-809.0,0.00037808,2]
[312481731,1705918255614,-453.47071063,0.00037808,2]
[312481732,1705918255624,-500.0,0.00037808,2]
[312481733,1705918255635,-1483.88,0.00037808,2]
[312481734,1705918255645,-500.0,0.00037808,2]
[312481735,1705918255654,-500.0,0.00037808,2]
[312481736,1705918255664,-500.0,0.00037808,2]
[312481737,1705918255673,-500.0,0.00037808,2]
[312481738,1705918255683,-500.0,0.00037808,2]
[312481739,1705918255693,-500.0,0.00037808,2]
[312481740,1705918255702,-1368.1,0.00037808,2]
[312481741,1705918255711,-500.0,0.00037808,2]
[312481742,1705918255721,-1085.38,0.00037808,2]
[312481743,1705918255731,-500.0,0.00037808,2]
[312481744,1705918255741,-667.73,0.00037808,2]
[312481745,1705918255750,-500.0,0.00037808,2]
[312481746,1705918255759,-500.0,0.00037808,2]
[312481747,1705918255768,-830.15,0.00037808,2]
[312481748,1705918255777,-830.43,0.00037808,2]
[312481749,1705918255786,-500.0,0.00037808,2]
[312481750,1705918255795,-500.0,0.00037808,2]
[312481751,1705918255804,-500.0,0.00037808,2]
[312481752,1705918255814,-500.0,0.00037808,2]
[312481753,1705918255829,-867.72,0.00037808,2]
[312481754,1705918255839,-500.0,0.00037808,2]
[312481755,1705918255848,-500.0,0.00037808,2]
[312481756,1705918255856,-584.85,0.00037808,2]
[312481757,1705918255865,-429.3555006,0.00037808,2]
[312481758,1705918255875,-1671.85,0.00037808,2]
[312481759,1705918255884,-500.0,0.00037808,2]
[312481760,1705918255893,-500.0,0.00037808,2]
[312481761,1705918255901,-1362.28,0.00037808,2]
[312481762,1705918255910,-1397.82,0.00037808,2]
[312481763,1705918255919,-500.0,0.00037808,2]
[312481764,1705918255928,-520.63,0.00037808,2]
[312481765,1705918255938,-500.0,0.00037808,2]
[312481766,1705918255947,-943.49,0.00037808,2]
[312481767,1705918255956,-500.0,0.00037808,2]
[312481768,1705918255965,-500.0,0.00037808,2]
[312481769,1705918255974,-500.0,0.00037808,2]
[312481770,1705918255982,-901.65,0.00037808,2]
[312481771,1705918255991,-1199.04,0.00037808,2]
[312481772,1705918256001,-519.21,0.00037808,2]
[312481773,1705918256009,-1189.19,0.00037808,2]
[312481774,1705918256018,-500.0,0.00037808,2]
[312481775,1705918256027,-1124.18,0.00037808,2]
[312481776,1705918256036,-500.0,0.00037808,2]
[312481777,1705918256046,-500.0,0.00037808,2]
[312481778,1705918256055,-500.0,0.00037808,2]
[312481779,1705918256064,-500.0,0.00037808,2]
[312481780,1705918256076,-500.0,0.00037808,2]
[312481781,1705918256086,-500.0,0.00037808,2]
[312481782,1705918256095,-790.44,0.00037808,2]
[312481783,1705918256104,-500.0,0.00037808,2]
[312481784,1705918256113,-500.0,0.00037808,2]
[312481785,1705918256122,-770.12,0.00037808,2]
[312481786,1705918256131,-500.0,0.00037808,2]
[312481787,1705918256140,-500.0,0.00037808,2]
[312481788,1705918256153,-737.99,0.00037808,2]
[312481789,1705918256163,-500.0,0.00037808,2]
[312481790,1705918256173,-500.0,0.00037808,2]
[312481791,1705918256182,-917.61,0.00037808,2]
[312481792,1705918256191,-500.0,0.00037808,2]
[312481793,1705918256200,-500.0,0.00037808,2]
[312481794,1705918256209,-500.0,0.00037808,2]
[312481795,1705918256217,-893.8,0.00037808,2]
[312481796,1705918256226,-1389.11,0.00037808,2]
[312481797,1705918256236,-3412.07,0.00037808,2]
[312481798,1705918256246,-184.76,0.00037808,2]
[312481799,1705918256255,-617.72,0.00037808,2]
[312481800,1705918256264,-500.0,0.00037808,2]
[312481801,1705918256273,-500.0,0.00037808,2]
[312481802,1705918256281,-500.0,0.00037808,2]
[312481803,1705918256290,-500.0,0.00037808,2]
[312481804,1705918256299,-500.0,0.00037808,2]
[312481805,1705918256308,-500.0,0.00037808,2]
[312481806,1705918256317,-1308.79,0.00037808,2]
[312481807,1705918256329,-509.61051003,0.00037808,2]
[312481808,1705918256338,-1347.19,0.00037808,2]
[312481809,1705918256355,-219.16,0.00037808,2]
[312481810,1705918256375,-786.81,0.00037808,2]
[312481811,1705918256390,-500.0,0.00037808,2]
[312481812,1705918256407,-500.0,0.00037808,2]
[312481813,1705918256425,-500.0,0.00037808,2]
[312481814,1705918256441,-500.0,0.00037808,2]
[312481815,1705918256456,-1000.0,0.00037808,7]
[312481816,1705918256471,-1012.64,0.00037808,2]
[312481817,1705918256487,-500.0,0.00037808,2]
[312481818,1705918256500,-500.0,0.00037808,2]
[312481819,1705918256517,-720.42,0.00037808,2]
[312481820,1705918256533,-567.79,0.00037808,2]
[312481821,1705918256547,-500.0,0.00037808,2]
[312481822,1705918256565,-500.0,0.00037808,2]
[312481823,1705918256586,-500.0,0.00037808,2]
[312481824,1705918256601,-500.0,0.00037808,2]
[312481825,1705918256612,-949.7,0.00037808,2]
[312481826,1705918256627,-502.76,0.00037808,2]
[312481827,1705918256642,-500.0,0.00037808,2]
[312481828,1705918256654,-1112.27,0.00037808,2]
[312481829,1705918256667,-500.0,0.00037808,2]
[312481830,1705918256680,-500.0,0.00037808,2]
[312481831,1705918256694,-500.0,0.00037808,2]
[312481832,1705918256707,-731.8,0.00037808,2]
[312481833,1705918256726,-500.0,0.00037808,2]
[312481834,1705918256740,-500.0,0.00037808,2]
[312481835,1705918256753,-500.0,0.00037808,2]
[312481836,1705918256766,-735.06,0.00037808,2]
[312481837,1705918256780,-500.0,0.00037808,2]
[312481838,1705918256793,-500.0,0.00037808,2]
[312481839,1705918256807,-500.0,0.00037808,2]
[312481840,1705918256819,-940.87,0.00037808,2]
[312481841,1705918256833,-588.49,0.00037808,2]
[312481842,1705918256847,-224.19291177,0.00037808,2]
[312481843,1705918256860,-500.0,0.00037808,2]
[312481844,1705918256873,-500.0,0.00037808,2]
[312481845,1705918256925,-669.76,0.00037808,2]
[312481846,1705918256938,-1014.77,0.00037808,2]
[312481847,1705918256952,-1016.17,0.00037808,2]
[312481848,1705918256965,-500.0,0.00037808,2]
[312481849,1705918256977,-500.0,0.00037808,2]
[312481850,1705918256992,-532.26021146,0.00037808,2]
[312481851,1705918257005,-500.0,0.00037808,2]
[312481852,1705918257019,-500.0,0.00037808,2]
[312481853,1705918257032,-1094.54,0.00037808,2]
[312481854,1705918257046,-500.0,0.00037808,2]
[312481855,1705918257059,-500.0,0.00037808,2]
[312481856,1705918257073,-755.49,0.00037808,2]
[312481857,1705918257086,-505.63902613,0.00037808,2]
[312481858,1705918257100,-500.0,0.00037808,2]
[312481859,1705918257113,-500.0,0.00037808,2]
[312481860,1705918257126,-1242.6,0.00037808,2]
[312481861,1705918257139,-524.25671231,0.00037808,2]
[312481862,1705918257153,-500.0,0.00037808,2]
[312481863,1705918257166,-155.60432878,0.00037808,2]
[312481864,1705918257179,-1460.56,0.00037808,2]
[312481865,1705918257193,-1075.62,0.00037808,2]
[312481866,1705918257206,-500.0,0.00037808,2]
[312481867,1705918257219,-847.87,0.00037808,2]
[312481868,1705918257233,-500.0,0.00037808,2]
[312481869,1705918257246,-1147.5,0.00037808,2]
[312481870,1705918257260,-500.0,0.00037808,2]
[312481871,1705918257273,-507.84554703,0.00037808,2]
[312481872,1705918257286,-500.0,0.00037808,2]
[312481873,1705918257299,-1144.52,0.00037808,2]
[312481874,1705918257312,-625.39,0.00037808,2]
[312481875,1705918257326,-500.0,0.00037808,2]
[312481876,1705918257340,-500.0,0.00037808,2]
[312481877,1705918257353,-944.14,0.00037808,2]
[312481878,1705918257366,-1352.26,0.00037808,2]
[312481879,1705918257379,-500.0,0.00037808,2]
[312481880,1705918257391,-500.0,0.00037808,2]
[312481881,1705918257404,-637.5,0.00037808,2]
[312481882,1705918257417,-1055.65,0.00037808,2]
[312481883,1705918257430,-706.31,0.00037808,2]
[312481884,1705918257443,-500.0,0.00037808,2]
[312481885,1705918257456,-1254.91,0.00037808,2]
[312481886,1705918257468,-508.1467256,0.00037808,2]
[312481887,1705918257481,-500.0,0.00037808,2]
[312481888,1705918257494,-500.0,0.00037808,2]
[312481889,1705918257508,-637.22,0.00037808,2]
[312481890,1705918257522,-1198.86,0.00037808,2]
[312481891,1705918257535,-500.0,0.00037808,2]
[312481892,1705918257548,-866.95,0.00037808,2]
[312481893,1705918257561,-500.0,0.00037808,2]
[312481894,1705918257575,-503.83954388,0.00037808,2]
[312481895,1705918257588,-971.33,0.00037808,2]
[312481896,1705918257601,-500.0,0.00037808,2]
[312481897,1705918257615,-500.0,0.00037808,2]
[312481898,1705918257627,-500.0,0.00037808,2]
[312481899,1705918257641,-1231.07,0.00037808,2]
[312481900,1705918257653,-577.64437861,0.00037808,2]
[312481901,1705918257666,-1273.36,0.00037808,2]
[312481902,1705918257679,-500.0,0.00037808,2]
[312481903,1705918257692,-242.56033512,0.00037808,2]
[312481904,1705918257970,-268.54908653,0.00037808,2]
[312481905,1705918257979,-38.63025389,0.00037808,2]
[312481906,1705918257994,-461.36974611,0.00037808,2]
[312481907,1705918258003,-137.85887645,0.00037808,2]
[312481908,1705918394668,-350.0,0.0004,120]
[312481909,1705918394694,-400.0,0.0004,120]
[312481910,1705918394717,-1048.39097584,0.0004,120]
[312481911,1705918394741,-729.64482364,0.0004,120]
[312481912,1705918394938,-400.0,0.00041123,120]
[312481913,1705918394968,-350.0,0.00041151,120]
[312481914,1705918395087,-400.0,0.00042247,120]
[312481915,1705918395118,-350.0,0.00042301,120]
[312481916,1705918395185,-294.14093601,0.00043,120]
[312481917,1705918395251,-400.0,0.0004337,120]
[312481918,1705918395283,-350.0,0.00043452,120]
[312481919,1705918395315,-212.30000019,0.000437,120]
[312481920,1705918395409,-400.0,0.00044493,120]
[312481921,1705918395440,-350.0,0.00044603,120]
[312481922,1705918395502,-400.3765365,0.00045,120]
[312481923,1705918395561,-400.0,0.00045616,120]
[312481924,1705918395591,-350.0,0.00045753,120]
[312481925,1705918395621,-491.18387796,0.0004588,100]
[312481926,1705918395703,-192.67853658,0.00046575,120]
[312481927,1705918395732,-172.18123988,0.00046575,120]
[312481928,1705918395762,-400.0,0.0004674,120]
[312481929,1705918395794,-350.0,0.00046904,120]
[312481930,1705918395849,-859.36166567,0.000475,120]
[312481931,1705918395904,-766.82122432,0.0004768,120]
[312481932,1705918395936,-400.0,0.00047863,120]
[312481933,1705918395967,-497.509009,0.00047945,120]
[312481934,1705918395999,-350.0,0.00048055,120]
[312481935,1705918396056,-60000.0,0.000482,120]
[312481936,1705918396096,-60000.0,0.000482,120]
[312481937,1705918396133,-60000.0,0.000482,120]
[312481938,1705918396170,-60000.0,0.000482,120]
[312481939,1705918396207,-60000.0,0.000482,120]
[312481940,1705918396295,-1077.94587403,0.000488,120]
[312481941,1705918396330,-400.0,0.00048986,120]
[312481942,1705918396362,-849.71455449,0.00049,120]
[312481943,1705918396385,-50000.0,0.00049,120]
[312481944,1705918396409,-350.0,0.00049205,120]
[312481945,1705918396435,-500.0,0.00049315,120]
[312481946,1705918396470,-300.5640632,0.000498,120]
[312481947,1705918396506,-1303.84035844,0.0004999,120]
[312481948,1705918396531,-476.62701413,0.0005,120]
[312481949,1705918396554,-537.61400016,0.0005,120]
[312481950,1705918396577,-300.0,0.0005,120]
[312481951,1705918396600,-404.91338522,0.0005,120]
[312481952,1705918397192,-1163.1457547,0.0005,120]
[312481953,1705918397226,-603.19754397,0.0005,120]
[312481954,1705918397249,-766.99061871,0.0005,120]
[312481955,1705918397271,-287.65430634,0.0005,120]
[312481956,1705918397296,-507.81,0.0005,120]
[312481957,1705918397320,-400.0,0.0005011,120]
[312481958,1705918397344,-350.0,0.00050356,120]
[312481959,1705918397367,-400.0,0.00051233,120]
[312481960,1705918397390,-1190.957,0.00051267,120]
[312481961,1705918397412,-1190.958,0.00051267,120]
[312481962,1705918397435,-1190.958,0.00051267,120]
[312481963,1705918397457,-1190.958,0.00051267,120]
[312481964,1705918397481,-1190.958,0.00051267,120]
[312481965,1705918397504,-1242.88338387,0.000513,120]
[312481966,1705918397526,-350.0,0.00051507,120]
[312481967,1705918397554,-3885.0,0.000517,117]
[312481968,1705918397577,-400.0,0.00052356,120]
[312481969,1705918397600,-150.0,0.000526,120]
[312481970,1705918397623,-350.0,0.00052658,120]
[312481971,1705918397647,-389.0,0.00053,120]
[312481972,1705918397670,-448.84506244,0.00053,120]
[312481973,1705918397694,-2000.0,0.00053029,120]
[312481974,1705918397717,-437.01015768,0.00053029,120]
[312481975,1705918397741,-156.06,0.00053159,120]
[312481976,1705918397766,-400.0,0.00053479,120]
[312481977,1705918397790,-1025.9518268,0.00053698,120]
[312481978,1705918397814,-150.0,0.000537,120]
[312481979,1705918397837,-350.0,0.00053808,120]
[312481980,1705918397863,-547.23838794,0.00054,120]
[312481981,1705918397888,-1713.00610036,0.0005439,120]
[312481982,1705918397914,-400.0,0.00054603,120]
[312481983,1705918397939,-4274.6,0.00054727,117]
[312481984,1705918397964,-1205.98651319,0.00054765,120]
[312481985,1705918397988,-157.02078593,0.00054765,120]
[312481986,1705918398014,-557.54640354,0.00054794,120]
[312481987,1705918398038,-500.0,0.00054794,120]
[312481988,1705918398061,-504.54107957,0.00054794,120]
[312481989,1705918398085,-500.0,0.00054794,120]
[312481990,1705918398109,-713.28,0.00054794,120]
[312481991,1705918398133,-500.0,0.00054794,120]
[312481992,1705918398156,-500.0,0.00054794,120]
[312481993,1705918398181,-15551.99,0.00054794,120]
[312481994,1705918398207,-602.84,0.00054794,120]
[312481995,1705918398234,-500.0,0.00054794,120]
[312481996,1705918398257,-645.74,0.00054794,120]
[312481997,1705918398283,-500.0,0.00054794,120]
[312481998,1705918398308,-500.0,0.00054794,120]
[312481999,1705918398332,-500.0,0.00054794,120]
[312482000,1705918398355,-636.13,0.00054794,120]
[312482001,1705918398379,-500.0,0.00054794,120]
[312482002,1705918398404,-500.0,0.00054794,120]
[312482003,1705918398429,-500.0,0.00054794,120]
[312482004,1705918398453,-500.0,0.00054794,120]
[312482005,1705918398477,-500.0,0.00054794,120]
[312482006,1705918398505,-1434.64,0.00054794,120]
[312482007,1705918398530,-500.0,0.00054794,120]
[312482008,1705918398556,-1398.85,0.00054794,120]
[312482009,1705918398581,-500.0,0.00054794,120]
[312482010,1705918398606,-500.0,0.00054794,120]
[312482011,1705918398630,-500.0,0.00054794,120]
[312482012,1705918398656,-2257.7,0.00054794,120]
[312482013,1705918398681,-997.7,0.00054794,120]
[312482014,1705918398707,-745.51,0.00054794,120]
[312482015,1705918398733,-1472.88,0.00054794,120]
[312482016,1705918398758,-1904.28,0.00054794,120]
[312482017,1705918398783,-500.0,0.00054794,120]
[312482018,1705918398806,-473.21243364,0.00054794,120]
[312482019,1705918398831,-500.0,0.00054794,120]
[312482020,1705918398856,-500.0,0.00054794,120]
[312482021,1705918398882,-500.0,0.00054794,120]
[312482022,1705918398907,-572.94554707,0.00054794,120]
[312482023,1705918398933,-500.0,0.00054794,120]
[312482024,1705918398960,-707.21,0.00054794,120]
[312482025,1705918398986,-309.04,0.00054794,120]
[312482026,1705918399012,-1764.0,0.00054794,120]
[312482027,1705918399038,-1907.12,0.00054794,120]
[312482028,1705918399063,-500.0,0.00054794,120]
[312482029,1705918399089,-500.0,0.00054794,120]
[312482030,1705918399114,-500.0,0.00054794,120]
[312482031,1705918399138,-500.0,0.00054794,120]
[312482032,1705918399162,-500.0,0.00054794,120]
[312482033,1705918399187,-220.88053287,0.00054794,120]
[312482034,1705918399211,-500.0,0.00054794,120]
[312482035,1705918399234,-500.0,0.00054794,120]
[312482036,1705918399258,-500.0,0.00054794,120]
[312482037,1705918399284,-1187.06,0.00054794,120]
[312482038,1705918399307,-7460.54,0.00054794,120]
[312482039,1705918399333,-500.0,0.00054794,120]
[312482040,1705918399357,-500.0,0.00054794,120]
[312482041,1705918399381,-500.0,0.00054794,120]
[312482042,1705918399406,-2478.45,0.00054794,120]
[312482043,1705918399430,-500.0,0.00054794,120]
[312482044,1705918399455,-500.0,0.00054794,120]
[312482045,1705918399479,-742.13,0.00054794,120]
[312482046,1705918399503,-500.0,0.00054794,120]
[312482047,1705918399527,-500.0,0.00054794,120]
[312482048,1705918399552,-506.3890616,0.00054794,120]
[312482049,1705918399575,-348.47488398,0.00054794,120]
[312482050,1705918399600,-1783.77,0.00054794,120]
[312482051,1705918399624,-4667.27,0.00054794,120]
[312482052,1705918399837,-613.91240425,0.00054794,120]
[312482053,1705918399869,-6273.73,0.00054794,120]
[312482054,1705918399893,-2435.59,0.00054794,120]
[312482055,1705918399927,-500.0,0.00054794,120]
[312482056,1705918399959,-500.0,0.00054794,120]
[312482057,1705918399985,-2017.06,0.00054794,120]
[312482058,1705918400011,-500.0,0.00054794,120]
[312482059,1705918400037,-500.0,0.00054794,120]
[312482060,1705918400062,-500.0,0.00054794,120]
[312482061,1705918400087,-500.0,0.00054794,120]
[312482062,1705918400113,-500.0,0.00054794,120]
[312482063,1705918400139,-500.0,0.00054794,120]
[312482064,1705918400166,-1952.41,0.00054794,120]
[312482065,1705918400194,-500.0,0.00054794,120]